Cogmind - Beta 9.4 BR @@@ ROGUE MODE // 2020.02.18 @ 13:40:18 // Experiment/BattleRoyale Player: cptwinky Result: Escaped! Performance ------------- Evolutions (0) 0 Regions Visited (0) 0 Robots Destroyed (2) 10 Value Destroyed (1000) 1000 Prototype IDs (0) 0 Alien Tech Used (0) 0 Bonus (24178) 24178 TOTAL SCORE: 25188 Bonus ------- Win 3000 Win Speed 21178 Cogmind --------- Core Integrity 195/250 Matter 45/300 Energy 211/220 System Corruption 0% Temperature Cool (174) Movement Walking (116) Location To Epsilon Eridani Parts ------- > --- POWER (2) -------- Light Fission Core Light Fission Core > --- PROPULSION (4) --- Improved Treads Biometal Leg Centrium Leg Centrium Leg > --- UTILITY (8) ------ Coolant Injector Advanced Weapon Cycler Improved Heavy Armor Plating Powered Armor Improved Thermal Shield EM Shield > --- WEAPON (3) ------- Heavy Ion Cannon Heavy Phase Cannon Heavy Neutron Cannon > --- INVENTORY (4) ---- Hypervelocity Gauss Rifle Gauss Cannon Mass Driver Makeshift Axe Peak State ------------ > --- POWER ------------ Light Fission Core Reinforced Quantum Reactor > --- PROPULSION ------- Improved Treads Biometal Leg Centrium Leg Centrium Leg > --- UTILITY ---------- Coolant Injector Weapon Cycler Advanced Weapon Cycler Improved Heavy Armor Plating Powered Armor EM Shield > --- WEAPON ----------- Ion Cannon Heavy Phase Cannon Heavy Neutron Cannon > --- INVENTORY -------- Fusion Compressor Hypervelocity Gauss Rifle Gauss Cannon Mass Driver [Rating: 95] Favorites ----------- Power Light Fission Core Power Core Light Fission Core Reactor Reinforced Quantum Reactor Propulsion Centrium Leg Treads Improved Treads Leg Centrium Leg Utility Coolant Injector Device Coolant Injector Processor Advanced Melee Analysis Suite Protection Powered Armor Weapon Heavy Neutron Cannon Energy Cannon Heavy Neutron Cannon Ballistic Cannon Gauss Cannon Build | -5 ------- Run | Tow Slots Evolved . | . Power . | . Propulsion . | . Utility . | . Weapon . | . Parts Attached 10 | 10 Power 1 | 1 Engine . | . Core 1 | 1 Reactor . | . Propulsion 2 | 2 Treads 1 | 1 Leg 1 | 1 Wheel . | . Hover . | . Flight . | . Utility 4 | 4 Device 3 | 3 Storage . | . Processor . | . Hackware . | . Protection 1 | 1 Artifact . | . Weapon 3 | 3 Energy Gun . | . Energy Cannon 3 | 3 Ballistic Gun . | . Ballistic Cannon . | . Launcher . | . Special Weapon . | . Impact Weapon . | . Slashing Weapon . | . Piercing Weapon . | . Special Melee Weapon . | . Unidentified Prototypes . | . Parts Lost . | . Power . | . Propulsion . | . Utility . | . Weapon . | . Highest Loss Streak . | . Average Slot Usage (%) 88 | 88 Core 9 | 9 Reactor 2 | 2 Treads 4 | 4 Leg 17 | 17 Device 21 | 21 Protection 11 | 11 Energy Cannon 16 | 16 Ballistic Cannon 1 | 1 Naked Turns . | . Heaviest Build 95 | 95 Greatest Support 88 | 88 Greatest Overweight (x) 1 | 1 Average Overweight (x) . | . Largest Inventory Capacity 4 | 4 Average Capacity 4 | 4 Most Carried 4 | 4 Average Carried 3 | 3 Final Capacity 4 | 4 Final Carried 4 | 4 Class Distribution -------------------- 81% | Tank 18% | Mutant Dominant Class ---------------- Tank | -5/Wartown Resources | -5 ----------- Run | Tow Matter Collected 43 | 43 Remotely . | . Salvage Created 43 | 43 Parts . | . Haulers Intercepted . | . Recyclers Shooed . | . Parts Field Recycled . | . Retrieved Matter . | . Parts Self-Destructed . | . Prevented . | . Kills | -5 ------- Run | Tow Combat Hostiles Destroyed 2 | 2 Cannons 2 | 2 Classes Destroyed 1 | 1 Player 2 | 2 Best Kill Streak 1 | 1 Combat Bots Only 1 | 1 Max Kills in Single Turn 1 | 1 Gunslinging . | . Exploded . | . Melee . | . Uniques/NPCs Destroyed . | . Combat | -5 -------- Run | Tow Damage Taken 213 | 213 Core 94 | 94 Absorbed by Shields . | . Redirected to Core 5883 | 5883 Core Remaining (%) 78 | 78 Volleys Fired 28 | 28 Largest 3 | 3 Hottest 273 | 273 Shots Fired 44 | 44 Gun . | . Cannon 44 | 44 Launcher . | . Special . | . Kinetic 14 | 14 Thermal 30 | 30 Explosive . | . Electromagnetic . | . Robot Hit Streak 11 | 11 Robot Miss Streak 2 | 2 Penetration Max . | . Secondary Targets . | . Shots Hit Robots 36 | 36 Core Hits 3 | 3 Critical Hits 4 | 4 Critical Kills . | . Critical Parts Destroyed 3 | 3 Melee Attacks . | . Impact . | . Slashing . | . Piercing . | . Sneak Attacks . | . Combat Hostiles . | . Follow-up Attacks . | . Damage Inflicted 1045 | 1045 Guns . | . Cannons 1045 | 1045 Explosions . | . Melee . | . Ramming . | . Kinetic 282 | 282 Thermal 763 | 763 Explosive . | . Electromagnetic . | . Impact . | . Slashing . | . Piercing . | . Highest Corruption . | . Average Corruption . | . Corruption Purged . | . Overload Shots . | . Overflow Damage 12 | 12 Projectiles 12 | 12 Explosions . | . Melee . | . Knockbacks 1 | 1 Impact . | . Kinetic 1 | 1 Secondary . | . Self-Inflicted Damage . | . Shots . | . Rammed . | . Targets Rammed . | . Kicked . | . Crushed . | . Highest Temperature 330 | 330 Average Temperature 159 | 159 Received Heat Transfer . | . Effects 1 | 1 Shutdowns 1 | 1 Siege Activations 1 | 1 Total Turns 8 | 8 Longest Duration 8 | 8 Robots Corrupted . | . Combat Hostiles . | . Parts Fried . | . Impact Corruptions . | . Robots Melted . | . Combat Hostiles . | . Parts Melted 6 | 6 Heat Transferred 207 | 207 Parts Sabotaged . | . Parts Stolen . | . Parts Stripped . | . Power Chain Reactions . | . Missiles Intercepted . | . Alert | -5 ------- Run | Tow Peak Influence . | . Average Influence . | . Maximum Alert Level . | . Low Security (%) . | . Level 1 . | . Level 2 . | . Level 3 . | . Level 4 . | . Level 5 . | . High Security . | . Max Security . | . Squads Dispatched . | . Investigation . | . Extermination . | . Reinforcement . | . Assault . | . Garrison . | . Intercept . | . Construction Impeded . | . Haulers Reinforced . | . Stealth | -5 --------- Run | Tow Distress Signals . | . Communications Jammed . | . Distress Signals . | . Times Spotted 2 | 2 Peak Tracking Total 1 | 1 Tactical Retreats . | . Traps | -5 ------- Run | Tow Traps Triggered . | . Indirectly . | . Trap Hack Attempts . | . Triggered . | . Disarmed . | . Reprogrammed . | . Reused . | . Traps Extracted . | . Installed . | . Triggered . | . Machines | -5 ---------- Run | Tow Machines Disabled 3 | 3 Max in Single Turn 2 | 2 Machines Sabotaged . | . Garrisons Compromised . | . Overloaded Fab Kills . | . Fab Network Shutdowns . | . Hacking | -5 --------- Run | Tow Machines Accessed . | . Terminals . | . Fabricators . | . Repair Stations . | . Recycling Units . | . Scanalyzers . | . Garrison Access . | . Total Hacks . | . Successful . | . Failed . | . Catastrophic . | . Database Lockouts . | . Manual . | . Terminals . | . Fabricators . | . Repair Stations . | . Recycling Units . | . Scanalyzers . | . Garrison Access . | . Terminal Hacks . | . Fabricator Hacks . | . Repair Station Hacks . | . Recycling Unit Hacks . | . Scanalyzer . | . Garrison Access Hacks . | . Unauthorized Hacks . | . Terminals . | . Fabricators . | . Repair Stations . | . Recycling Units . | . Scanalyzers . | . Garrison Access . | . Data Cores Recovered . | . Used . | . Hacking Detections . | . Full Trace Events . | . Feedback Events . | . Feedback Blocked . | . Robot Schematics Acquired . | . Robots Built . | . Matter . | . Time . | . Total Robot Build Rating . | . Part Schematics Acquired . | . Parts Built . | . Matter . | . Time . | . Total Part Build Rating . | . Parts Repaired . | . Time . | . Parts Recycled . | . Recycled Matter . | . Retrieved Matter . | . Retrieved Components . | . Parts Scanalyzed . | . Part Schematics Acquired . | . Parts Damaged . | . Bothacking | -5 ------------ Run | Tow Used RIF Installer . | . Robots Hacked . | . Non-combat . | . Combat . | . Robot Hacks Applied . | . Relay Couplers Released . | . Robots Rewired . | . Allies Hacked . | . Hacks Repelled . | . Allies | -5 -------- Run | Tow Total Allies . | . Largest Group . | . Highest-Rated Group . | . Highest-Rated Ally . | . Total Orders . | . Ally Attacks . | . Total Damage . | . Kills . | . Allies Corrupted . | . Allies Melted . | . Intel | -5 ------- Run | Tow Robot Analysis Total . | . Derelict Logs Recovered . | . Drone Launches . | . Drone Recoveries . | . Exploration | -5 ------------- Run | Tow Turns Passed 1145 | 1145 Spaces Moved 722 | 722 Core . | . Treads 1 | 1 Legs 721 | 721 Wheels . | . Hover . | . Flight . | . Fastest Speed 116 | 116 Average Speed 127 | 127 Slowest Speed 210 | 210 Overloaded Moves . | . Propulsion Burnouts . | . Robots Hopped . | . Cave-ins Triggered . | . Exploration Rate (%) 20 | 20 Regions Visited 1 Branch Regions 1 Pre-discovered Areas . | . Known Exits Taken . | . Unknown Exits Taken . | . Scrap Searched . | . Spaces Dug . | . Terrain Destroyed 15 | 15 Melee . | . Projectile 4 | 4 AOE 11 | 11 Actions | -5 --------- Run | Tow Total 918 | 918 Wait 145 | 145 Move 721 | 721 Hop . | . Pick Up 6 | 6 Fast Attach 7 | 7 Attach 1 | 1 Detach 2 | 2 Swap 2 | 2 Drop 6 | 6 Fire 28 | 28 Melee . | . Ram . | . Kick . | . Crush . | . Escape Stasis . | . Rewire . | . Trap . | . Miscellaneous . | . Route ------- -5/Wartown To Epsilon Eridani History --------- Turn | Location | Event 502 | -5/Wartown | Build established: Tank 1146 | *** | Escaped! Last Messages --------------- 00481_ Acquired Lgt. Fission Core. 00539_ Dropped Ion Cannon. 00540_ Acquired Hvy. Ion Cannon. 00668_ Dropped Fusion Compressor. 00669_ Acquired Mak. Axe. 00747_ Acquired Imp. Thermal Shield. 00889_ The unstable cave ceiling collapses. 01033_ CriticalGunner-10 suffers critical hit. 01033_ Destroyed Linear Accelerator. 01034_ CriticalGunner-10 attaches Quantum Rifle. 01048_ CriticalGunner-10 attaches Adv. Plasma Cannon. 01051_ Quantum Rifle melted. 01051_ Matter Filter melted. 01051_ Prototype Hover Unit melted. 01051_ Arm. Medium Treads melted. 01051_ Antigrav Array melted. 01051_ Adv. Plasma Cannon melted. 01051_ CriticalGunner-10 destroyed. 01059_ Used Protomatter to restore core integrity (+66, depleted) 01061_ Acquired 26 matter. Map ----- +----------------------------------------------------+ | ???????????? # | | ??????????? # | | ?????????? # | | ?????????############# | | ?????? | | ?????? | | ?????? # # # " " | | ???????????# # " # | | ??????????? # # # # # | | ??????????? # # # # # | | ??????????? # # # # | | ??????? ? # # # | | ????? # # # ! # | | ???? # # # # # | | ?? # # # # | | ? #########+++++########## # | | ? ?# ! * #?# # | | ?# * #?# # | | ?# #?# # | | ?# #?# # | | " ?# #?# # | | # ### #####+#### | | + + | | + + | | + + """" | | + @ + """" | | + + """" | | ### ### | | # #??? """ | | # #???? """ | | ! # #????? """ | | # #?????? ? | | # #????????""?? | | # #?????????"????? | | ###+##### ########++++;#######??????????????? | | ????????# # # ?????????? | | ????????# ?????????? | | ????????# ?????????? | | ????????# ?????????? | | ????????# ??????????? | | ????????########### # ## ??????????? | | ????????????????? # ???????????? | | ???????????????? # ???????????? | | ??????????????? ???????????? | | ????????????? # ????????????? | | ???????????? ?????????????? | | ???????????? ??????????????? | | ???????????? ??????????????? | | ????????????? ???????????????? | | ?????????????? # ?????????????????? | +----------------------------------------------------+ Best States ------------- Heat Dissipation 25 Coolant Potential 130 Energy Generation 38 Energy Capacity 410 Matter Stores 94 Matter Capacity 300 Sight Range 16 Terrain Scan Density 10 Armor Coverage 1000 Resistance: TH 25 Resistance: EM 25 Weapon Cycling 25 Evasion (%) 40 Melee Accuracy 8 Recoil Reduction 2 Item Schematics ----------------- None Robot Schematics ------------------ None Fabricated ------------ Nothing Alien Tech Used ----------------- None Achievements -------------- None Challenges ------------ None Game ------ Seed FortressIonicHumpback Manual? 0 Play Time 00:19:24 Cumulative 451.8 hours Start 2020.02.18 @ 13:22:35 End 2020.02.18 @ 13:40:18 Sessions 0 Manual Loads 0 Difficulty Rogue Special Mode Experiment/BattleRoyale Game No. 354 Rogue 350 Adventurer 4 Explorer 0 Win Type 0 Total 46 Types 38/3/1/2/2/0/0 Lore% 93 Gallery% 95 Achievement% 92 Wizard Run 0 Options --------- ASCII 0 Keyboard 0 Movement Vi Keybinds 0 Fullscreen 0 Font 16/Terminus Map View 76x50 Tactical HUD 1 Map Filters NONE Filters NONE Steam 0 RUN: 9fff7a46-36d7-4297-a355-5432cbf12079